[Event "Early-Titled-Tuesday-Blitz-March-12-2024"]
[Site "Chess.com"]
[Date "2024.03.12"]
[Round "2"]
[White "Cheer_Down"]
[Black "Chessmissile07"]
[Result "0-1"]
[WhiteElo "2421"]
[BlackElo "2954"]
[TimeControl "180+1"]
[EndTime "8:18:44 PDT"]
[Termination "Chessmissile07 won by resignation"]

1. e4 {[%clk 0:02:41.5]} 1... a6 {[%clk 0:03:00.9]} 2. d4 {[%clk 0:02:40.6]}
2... d6 {[%clk 0:02:56.9]} 3. Nf3 {[%clk 0:02:38.9]} 3... Nf6 {[%clk 0:02:56.5]}
4. Nc3 {[%clk 0:02:38]} 4... b5 {[%clk 0:02:56.1]} 5. Bd3 {[%clk 0:02:33.2]}
5... Bb7 {[%clk 0:02:56.1]} 6. a3 {[%clk 0:02:32.4]} 6... g6 {[%clk 0:02:55]} 7.
O-O {[%clk 0:02:32.3]} 7... Bg7 {[%clk 0:02:55.1]} 8. h3 {[%clk 0:02:28.9]} 8...
O-O {[%clk 0:02:55.1]} 9. e5 {[%clk 0:02:23.1]} 9... dxe5 {[%clk 0:02:18.4]} 10.
dxe5 {[%clk 0:02:22.7]} 10... Nd5 {[%clk 0:02:18.4]} 11. Nxd5 {[%clk 0:02:20.6]}
11... Qxd5 {[%clk 0:02:17.1]} 12. Re1 {[%clk 0:02:19.5]} 12... Nd7 {[%clk
0:02:11.6]} 13. Bf4 {[%clk 0:02:16.5]} 13... Nc5 {[%clk 0:02:09]} 14. Bf1 {[%clk
0:02:10.4]} 14... Rad8 {[%clk 0:02:05.4]} 15. Qxd5 {[%clk 0:02:09.1]} 15... Bxd5
{[%clk 0:02:04.2]} 16. Rad1 {[%clk 0:02:05.1]} 16... Ne6 {[%clk 0:02:01.4]} 17.
Bg3 {[%clk 0:02:02.5]} 17... Bxf3 {[%clk 0:01:58.1]} 18. gxf3 {[%clk 0:02:02.5]}
18... Bh6 {[%clk 0:01:58.5]} 19. c4 {[%clk 0:01:58]} 19... Bd2 {[%clk
0:01:50.4]} 20. Re4 {[%clk 0:01:48.9]} 20... c6 {[%clk 0:01:21.9]} 21. cxb5
{[%clk 0:01:42.9]} 21... cxb5 {[%clk 0:01:21.4]} 22. h4 {[%clk 0:01:39.7]} 22...
Nc5 {[%clk 0:01:09.2]} 23. Re2 {[%clk 0:01:31.3]} 23... Nb3 {[%clk 0:01:08.3]}
24. f4 {[%clk 0:01:14.7]} 24... e6 {[%clk 0:01:01.9]} 25. Kh2 {[%clk 0:01:12.1]}
25... h5 {[%clk 0:00:59.7]} 26. Bg2 {[%clk 0:01:10.6]} 26... Ba5 {[%clk
0:00:51.9]} 27. Rxd8 {[%clk 0:01:09.8]} 27... Rxd8 {[%clk 0:00:52.8]} 28. Re3
{[%clk 0:01:10.3]} 28... Nd2 {[%clk 0:00:47.8]} 29. Kh3 {[%clk 0:01:04.4]} 29...
Nc4 {[%clk 0:00:46.2]} 30. Re2 {[%clk 0:01:04.6]} 30... Rd2 {[%clk 0:00:44.5]}
31. Rxd2 {[%clk 0:01:03.4]} 31... Bxd2 {[%clk 0:00:45.4]} 32. Bb7 {[%clk
0:01:00]} 32... a5 {[%clk 0:00:32.4]} 33. Ba6 {[%clk 0:00:59]} 33... Nxb2 {[%clk
0:00:32.5]} 34. Bxb5 {[%clk 0:00:58.3]} 34... Kf8 {[%clk 0:00:22.3]} 35. a4
{[%clk 0:00:52.3]} 35... Nd1 {[%clk 0:00:20]} 36. Kg2 {[%clk 0:00:49.7]} 36...
Nc3 {[%clk 0:00:20.5]} 37. Bc6 {[%clk 0:00:49.2]} 37... Ke7 {[%clk 0:00:16.5]}
38. f3 {[%clk 0:00:45.4]} 38... Nd5 {[%clk 0:00:15.8]} 39. Kf2 {[%clk
0:00:39.7]} 39... Nxf4 {[%clk 0:00:13.5]} 40. Bh2 {[%clk 0:00:33.7]} 40... Bc1
{[%clk 0:00:11.6]} 41. Ke1 {[%clk 0:00:31.9]} 41... Ng2+ {[%clk 0:00:11]} 42.
Kd1 {[%clk 0:00:31.7]} 42... Bf4 {[%clk 0:00:11.1]} 43. Bg1 {[%clk 0:00:31.6]}
43... Nxh4 {[%clk 0:00:10.6]} 44. Bc5+ {[%clk 0:00:30.9]} 44... Kd8 {[%clk
0:00:09.8]} 45. Bb6+ {[%clk 0:00:31.5]} 45... Kc8 {[%clk 0:00:10.3]} 46. Bxa5
{[%clk 0:00:31.9]} 46... Nf5 {[%clk 0:00:10.3]} 47. Bb6 {[%clk 0:00:31]} 47...
Be3 {[%clk 0:00:10.8]} 48. Ba5 {[%clk 0:00:28.5]} 48... h4 {[%clk 0:00:10.7]}
49. Ke2 {[%clk 0:00:27.1]} 49... h3 {[%clk 0:00:10.9]} 50. f4 {[%clk 0:00:27.6]}
50... Bxf4 {[%clk 0:00:09.9]} 51. Bb6 {[%clk 0:00:27]} 51... Bxe5 {[%clk
0:00:08.7]} 52. a5 {[%clk 0:00:26.9]} 52... Bd4 {[%clk 0:00:09.1]} 53. Kd3
{[%clk 0:00:14.2]} 53... Bxb6 {[%clk 0:00:08.7]} 54. axb6 {[%clk 0:00:15.1]}
54... h2 {[%clk 0:00:08.7]} 55. Kc4 {[%clk 0:00:15.5]} 55... Ng3 {[%clk
0:00:08.2]} 56. Kb5 {[%clk 0:00:15.3]} 56... Kb8 {[%clk 0:00:07.6]} 57. Kc5
{[%clk 0:00:14.8]} 57... h1=Q {[%clk 0:00:07.5]} 58. Kd6 {[%clk 0:00:15]} 58...
Qd1+ {[%clk 0:00:06]} 59. Ke7 {[%clk 0:00:15.3]} 59... Nf5+ {[%clk 0:00:05.9]}
60. Kxf7 {[%clk 0:00:15.4]} 60... Qd6 {[%clk 0:00:06.5]} 61. Be8 {[%clk
0:00:15.2]} 61... Qe7+ {[%clk 0:00:06.4]} 62. Kxg6 {[%clk 0:00:15.1]} 62...
Qxe8+ {[%clk 0:00:06.5]} 63. Kf6 {[%clk 0:00:15.7]} 63... Qe7+ {[%clk
0:00:06.6]} 64. Ke5 {[%clk 0:00:16.1]} 64... Kb7 {[%clk 0:00:06.1]} 65. Ke4
{[%clk 0:00:15.9]} 65... Qd6 {[%clk 0:00:06.2]} 0-1

[Event "Early-Titled-Tuesday-Blitz-March-12-2024"]
[Site "Chess.com"]
[Date "2024.03.12"]
[Round "2"]
[White "Felix-Rose"]
[Black "Boorchess"]
[Result "0-1"]
[WhiteElo "2237"]
[BlackElo "2527"]
[TimeControl "180+1"]
[EndTime "8:18:47 PDT"]
[Termination "Boorchess won by checkmate"]

1. d4 {[%clk 0:02:59.9]} 1... Nf6 {[%clk 0:02:59.8]} 2. Nc3 {[%clk 0:02:59.7]}
2... d5 {[%clk 0:02:57.8]} 3. Bf4 {[%clk 0:02:59.6]} 3... a6 {[%clk 0:02:55.9]}
4. Qd3 {[%clk 0:02:58.1]} 4... Nc6 {[%clk 0:02:51.1]} 5. f3 {[%clk 0:02:53.9]}
5... Nb4 {[%clk 0:02:46.9]} 6. Qd2 {[%clk 0:02:54.1]} 6... c5 {[%clk 0:02:45.9]}
7. dxc5 {[%clk 0:02:48.1]} 7... Nc6 {[%clk 0:02:39.6]} 8. O-O-O {[%clk
0:02:41.7]} 8... e5 {[%clk 0:02:27.8]} 9. Bg5 {[%clk 0:02:41.6]} 9... d4 {[%clk
0:02:22]} 10. Bxf6 {[%clk 0:02:38.8]} 10... gxf6 {[%clk 0:02:18]} 11. Ne4 {[%clk
0:02:36]} 11... Be6 {[%clk 0:02:04.4]} 12. Kb1 {[%clk 0:02:26]} 12... h5 {[%clk
0:01:58.4]} 13. e3 {[%clk 0:02:23.1]} 13... f5 {[%clk 0:01:43.3]} 14. Nd6+
{[%clk 0:01:58.3]} 14... Bxd6 {[%clk 0:01:42.8]} 15. cxd6 {[%clk 0:01:59.2]}
15... Qxd6 {[%clk 0:01:43.5]} 16. exd4 {[%clk 0:01:58.6]} 16... exd4 {[%clk
0:01:44.4]} 17. Ne2 {[%clk 0:01:54.7]} 17... O-O-O {[%clk 0:01:43.2]} 18. c3
{[%clk 0:01:35.9]} 18... Qd5 {[%clk 0:01:31.4]} 19. b3 {[%clk 0:01:17.5]} 19...
dxc3 {[%clk 0:00:57.8]} 20. Qxd5 {[%clk 0:01:16.7]} 20... Rxd5 {[%clk
0:00:55.5]} 21. Rxd5 {[%clk 0:01:15.6]} 21... Bxd5 {[%clk 0:00:54.9]} 22. Nxc3
{[%clk 0:01:15.9]} 22... Be6 {[%clk 0:00:54.9]} 23. Bd3 {[%clk 0:01:06.1]} 23...
h4 {[%clk 0:00:45.8]} 24. Re1 {[%clk 0:00:59.9]} 24... Rg8 {[%clk 0:00:41.5]}
25. Bf1 {[%clk 0:00:58.4]} 25... f4 {[%clk 0:00:33.7]} 26. Ne2 {[%clk
0:00:53.8]} 26... Bf5+ {[%clk 0:00:31.6]} 27. Kb2 {[%clk 0:00:52]} 27... Rd8
{[%clk 0:00:29.5]} 28. Kc1 {[%clk 0:00:40.8]} 28... Nb4 {[%clk 0:00:27.9]} 29.
Nxf4 {[%clk 0:00:39.3]} 29... Nxa2+ {[%clk 0:00:26.9]} 30. Kb2 {[%clk
0:00:36.9]} 30... Rd2+ {[%clk 0:00:25.8]} 31. Ka3 {[%clk 0:00:36.2]} 31... a5
{[%clk 0:00:23.6]} 32. Re2 {[%clk 0:00:27.8]} 32... Rd1 {[%clk 0:00:20]} 33.
Rxa2 {[%clk 0:00:23.5]} 33... Rxf1 {[%clk 0:00:19.7]} 34. Ka4 {[%clk 0:00:23.1]}
34... b6 {[%clk 0:00:19.1]} 35. h3 {[%clk 0:00:22.4]} 35... Kb7 {[%clk 0:00:19]}
36. Rd2 {[%clk 0:00:21.2]} 36... Ka6 {[%clk 0:00:18.1]} 37. Ka3 {[%clk
0:00:20.9]} 37... Ra1+ {[%clk 0:00:16.7]} 38. Kb2 {[%clk 0:00:21.2]} 38... Rb1+
{[%clk 0:00:17.6]} 39. Kc3 {[%clk 0:00:21.6]} 39... Rc1+ {[%clk 0:00:18]} 40.
Kd4 {[%clk 0:00:21.4]} 40... Rc5 {[%clk 0:00:17.9]} 41. Re2 {[%clk 0:00:15.8]}
41... f6 {[%clk 0:00:17]} 42. Nd5 {[%clk 0:00:13.6]} 42... Rb5 {[%clk 0:00:17]}
43. Kc4 {[%clk 0:00:11.2]} 43... Bb1 {[%clk 0:00:14.8]} 44. Nc3 {[%clk
0:00:10.2]} 44... Rc5+ {[%clk 0:00:13.7]} 45. Kd4 {[%clk 0:00:10.4]} 45... Bg6
{[%clk 0:00:13.6]} 46. Re6 {[%clk 0:00:10.3]} 46... Bf7 {[%clk 0:00:11.5]} 47.
Rxf6 {[%clk 0:00:09.9]} 47... Bxb3 {[%clk 0:00:11.4]} 48. Ne4 {[%clk 0:00:09.7]}
48... Rc4+ {[%clk 0:00:11.2]} 49. Kd3 {[%clk 0:00:09.6]} 49... a4 {[%clk
0:00:11.3]} 50. Nd6 {[%clk 0:00:09.7]} 50... Rc6 {[%clk 0:00:10.8]} 51. Ne4
{[%clk 0:00:09.5]} 51... Rxf6 {[%clk 0:00:09.8]} 52. Nxf6 {[%clk 0:00:10.4]}
52... b5 {[%clk 0:00:10.2]} 53. Kc3 {[%clk 0:00:10.2]} 53... Ka5 {[%clk
0:00:10.4]} 54. Ne4 {[%clk 0:00:10.4]} 54... b4+ {[%clk 0:00:10.5]} 55. Kb2
{[%clk 0:00:11]} 55... Bd5 {[%clk 0:00:10.6]} 56. Nd2 {[%clk 0:00:08.1]} 56...
a3+ {[%clk 0:00:10.5]} 57. Ka1 {[%clk 0:00:08.7]} 57... Ka4 {[%clk 0:00:11]} 58.
f4 {[%clk 0:00:08.5]} 58... b3 {[%clk 0:00:11.2]} 59. Nxb3 {[%clk 0:00:08.6]}
59... Kxb3 {[%clk 0:00:11.2]} 60. f5 {[%clk 0:00:09.5]} 60... Bf7 {[%clk
0:00:10.9]} 61. g4 {[%clk 0:00:10.1]} 61... hxg3 {[%clk 0:00:10.1]} 62. f6
{[%clk 0:00:10.3]} 62... g2 {[%clk 0:00:10.1]} 63. h4 {[%clk 0:00:11.2]} 63...
g1=Q# {[%clk 0:00:10.3]} 0-1

[Event "Early-Titled-Tuesday-Blitz-March-12-2024"]
[Site "Chess.com"]
[Date "2024.03.12"]
[Round "2"]
[White "yosephtaher"]
[Black "Alex_Banzea"]
[Result "1-0"]
[WhiteElo "2918"]
[BlackElo "2626"]
[TimeControl "180+1"]
[EndTime "8:18:54 PDT"]
[Termination "yosephtaher won by resignation"]

1. d4 {[%clk 0:03:00.9]} 1... Nf6 {[%clk 0:02:50.7]} 2. Nc3 {[%clk 0:02:55]}
2... d5 {[%clk 0:02:50.5]} 3. Bf4 {[%clk 0:02:50]} 3... g6 {[%clk 0:02:51]} 4.
e3 {[%clk 0:02:49.7]} 4... Bg7 {[%clk 0:02:51.5]} 5. h4 {[%clk 0:02:50.5]} 5...
O-O {[%clk 0:02:52.1]} 6. h5 {[%clk 0:02:51.1]} 6... c5 {[%clk 0:02:52.8]} 7.
hxg6 {[%clk 0:02:51]} 7... hxg6 {[%clk 0:02:53.7]} 8. Nf3 {[%clk 0:02:48.8]}
8... Bg4 {[%clk 0:02:48.7]} 9. Be2 {[%clk 0:02:48.5]} 9... Bxf3 {[%clk 0:02:45]}
10. Bxf3 {[%clk 0:02:48.6]} 10... cxd4 {[%clk 0:02:45.9]} 11. exd4 {[%clk
0:02:47.7]} 11... Nc6 {[%clk 0:02:46.8]} 12. Qd2 {[%clk 0:02:47.6]} 12... e5
{[%clk 0:02:40.4]} 13. dxe5 {[%clk 0:02:45.6]} 13... Nxe5 {[%clk 0:02:41.3]} 14.
O-O-O {[%clk 0:02:13.3]} 14... Nc4 {[%clk 0:02:21]} 15. Qd3 {[%clk 0:02:11.2]}
15... Qb6 {[%clk 0:02:21.6]} 16. b3 {[%clk 0:02:09.1]} 16... Qa5 {[%clk
0:02:18.4]} 17. bxc4 {[%clk 0:02:01.3]} 17... Qa3+ {[%clk 0:02:18]} 18. Kb1
{[%clk 0:02:00.6]} 18... Ne4 {[%clk 0:02:11.1]} 19. Bxe4 {[%clk 0:01:39.3]}
19... Bxc3 {[%clk 0:01:29.9]} 20. Rh8+ {[%clk 0:01:37]} 20... Kxh8 {[%clk
0:01:19.7]} 21. Be5+ {[%clk 0:01:35.8]} 21... Bxe5 {[%clk 0:01:16.2]} 22. Qxa3
{[%clk 0:01:34.6]} 22... dxe4 {[%clk 0:01:16.8]} 23. Qe7 {[%clk 0:01:30.8]}
23... Bc3 {[%clk 0:01:09.9]} 24. Qxe4 {[%clk 0:01:23.3]} 24... Kg7 {[%clk
0:01:06.8]} 25. Qf3 {[%clk 0:01:17.6]} 25... Bf6 {[%clk 0:01:03.2]} 26. Rd6
{[%clk 0:01:16.3]} 26... Be5 {[%clk 0:01:01.1]} 27. Rd7 {[%clk 0:01:15.1]} 27...
Rad8 {[%clk 0:00:56.3]} 28. Rd5 {[%clk 0:01:10.2]} 28... Bf6 {[%clk 0:00:49.6]}
29. a4 {[%clk 0:01:10.1]} 29... Rfe8 {[%clk 0:00:47.2]} 30. Ka2 {[%clk 0:01:08]}
30... b6 {[%clk 0:00:45.8]} 31. Kb3 {[%clk 0:00:57.5]} 31... Rc8 {[%clk
0:00:35.9]} 32. Rd6 {[%clk 0:00:54.5]} 32... Be5 {[%clk 0:00:24.3]} 33. Rd7
{[%clk 0:00:54.8]} 33... Bf6 {[%clk 0:00:25.2]} 34. Qb7 {[%clk 0:00:54.3]} 34...
Rf8 {[%clk 0:00:20.6]} 35. Rxf7+ {[%clk 0:00:53.7]} 35... Rxf7 {[%clk
0:00:20.2]} 36. Qxc8 {[%clk 0:00:54.4]} 36... Bd4 {[%clk 0:00:20.4]} 37. f3
{[%clk 0:00:54.9]} 37... a5 {[%clk 0:00:20.4]} 38. Qd8 {[%clk 0:00:54]} 38...
Bc5 {[%clk 0:00:20.3]} 39. c3 {[%clk 0:00:53.8]} 39... Re7 {[%clk 0:00:20.3]}
40. Qd5 {[%clk 0:00:53.9]} 40... Kf6 {[%clk 0:00:19.9]} 41. f4 {[%clk
0:00:53.8]} 41... Re3 {[%clk 0:00:18]} 42. g4 {[%clk 0:00:53.8]} 42... Kg7
{[%clk 0:00:17.7]} 43. Kc2 {[%clk 0:00:54]} 43... Kf6 {[%clk 0:00:18]} 44. g5+
{[%clk 0:00:53.7]} 44... Kg7 {[%clk 0:00:17.6]} 45. f5 {[%clk 0:00:54.4]} 45...
gxf5 {[%clk 0:00:17.4]} 46. Qxf5 {[%clk 0:00:55.3]} 46... Re7 {[%clk 0:00:17.1]}
47. Qf6+ {[%clk 0:00:55.6]} 47... Kg8 {[%clk 0:00:17.4]} 48. g6 {[%clk 0:00:56]}
48... Ra7 {[%clk 0:00:08.4]} 49. Kd3 {[%clk 0:00:48.3]} 49... Rd7+ {[%clk
0:00:08.4]} 50. Ke4 {[%clk 0:00:48]} 50... Re7+ {[%clk 0:00:07.6]} 51. Kd5
{[%clk 0:00:48.2]} 51... Rd7+ {[%clk 0:00:06.6]} 52. Kc6 {[%clk 0:00:48.6]}
52... Ra7 {[%clk 0:00:06.3]} 53. Kd5 {[%clk 0:00:35.4]} 53... Rd7+ {[%clk
0:00:06]} 54. Ke4 {[%clk 0:00:36]} 54... Ra7 {[%clk 0:00:06.9]} 55. Kf5 {[%clk
0:00:36]} 55... Rb7 {[%clk 0:00:05.5]} 56. Kg4 {[%clk 0:00:33.3]} 56... Ra7
{[%clk 0:00:04.3]} 57. Kh5 {[%clk 0:00:33.8]} 57... Re7 {[%clk 0:00:04.3]} 58.
Qf5 {[%clk 0:00:28.7]} 58... Ra7 {[%clk 0:00:03.8]} 59. Qd5+ {[%clk 0:00:25.7]}
59... Kg7 {[%clk 0:00:03.4]} 60. Qe5+ {[%clk 0:00:26.4]} 60... Kg8 {[%clk
0:00:03.7]} 61. Kh6 {[%clk 0:00:26.9]} 61... Bf8+ {[%clk 0:00:02.8]} 62. Kg5
{[%clk 0:00:27.4]} 62... Be7+ {[%clk 0:00:02.7]} 63. Kf5 {[%clk 0:00:25.8]}
63... Bf8 {[%clk 0:00:02.7]} 64. Qe6+ {[%clk 0:00:25.5]} 64... Kh8 {[%clk
0:00:02.7]} 65. Qxb6 {[%clk 0:00:26.4]} 65... Re7 {[%clk 0:00:01.6]} 66. c5
{[%clk 0:00:25.6]} 66... Kg7 {[%clk 0:00:01.6]} 67. Qf6+ {[%clk 0:00:25.4]}
67... Kg8 {[%clk 0:00:01.6]} 68. c6 {[%clk 0:00:26]} 68... Rc7 {[%clk
0:00:01.9]} 69. Qe6+ {[%clk 0:00:26.6]} 69... Kh8 {[%clk 0:00:02]} 70. Ke5
{[%clk 0:00:27.5]} 70... Re7 {[%clk 0:00:02.5]} 71. Qxe7 {[%clk 0:00:27.5]}
71... Bxe7 {[%clk 0:00:03.4]} 72. Ke6 {[%clk 0:00:28.4]} 72... Bd8 {[%clk
0:00:03.8]} 73. Kd7 {[%clk 0:00:29]} 73... Bb6 {[%clk 0:00:04.6]} 74. c7 {[%clk
0:00:29.9]} 74... Bxc7 {[%clk 0:00:05.4]} 75. Kxc7 {[%clk 0:00:30.8]} 75... Kg7
{[%clk 0:00:06.3]} 76. Kb6 {[%clk 0:00:31.7]} 76... Kxg6 {[%clk 0:00:07.2]} 77.
Kxa5 {[%clk 0:00:32.6]} 1-0

[Event "Early-Titled-Tuesday-Blitz-March-12-2024"]
[Site "Chess.com"]
[Date "2024.03.12"]
[Round "2"]
[White "Vasily85"]
[Black "pfalcon1949"]
[Result "1-0"]
[WhiteElo "2473"]
[BlackElo "1951"]
[TimeControl "180+1"]
[EndTime "8:19:10 PDT"]
[Termination "Vasily85 won on time"]

1. e4 {[%clk 0:03:00.9]} 1... e6 {[%clk 0:02:53.2]} 2. d3 {[%clk 0:02:58.4]}
2... d5 {[%clk 0:02:53.7]} 3. Nd2 {[%clk 0:02:58.7]} 3... c5 {[%clk 0:02:54.3]}
4. g3 {[%clk 0:02:57.5]} 4... Nc6 {[%clk 0:02:54.9]} 5. Bg2 {[%clk 0:02:57.7]}
5... Bd6 {[%clk 0:02:53]} 6. Ngf3 {[%clk 0:02:42]} 6... Nge7 {[%clk 0:02:52.4]}
7. O-O {[%clk 0:02:40.7]} 7... O-O {[%clk 0:02:52.5]} 8. Re1 {[%clk 0:02:37.5]}
8... f6 {[%clk 0:02:52.1]} 9. c3 {[%clk 0:02:37.4]} 9... d4 {[%clk 0:02:52.1]}
10. Nc4 {[%clk 0:02:34.6]} 10... e5 {[%clk 0:02:51.4]} 11. a4 {[%clk 0:02:32.9]}
11... Bc7 {[%clk 0:02:49.4]} 12. Rf1 {[%clk 0:02:10.8]} 12... Be6 {[%clk
0:02:49]} 13. Qe2 {[%clk 0:02:00.1]} 13... b6 {[%clk 0:02:43.7]} 14. Nfd2 {[%clk
0:01:56.6]} 14... a6 {[%clk 0:02:44.2]} 15. f4 {[%clk 0:01:51.6]} 15... b5
{[%clk 0:02:44.7]} 16. axb5 {[%clk 0:01:51.9]} 16... axb5 {[%clk 0:02:45.2]} 17.
Rxa8 {[%clk 0:01:52.6]} 17... Qxa8 {[%clk 0:02:43.3]} 18. Na3 {[%clk 0:01:32.3]}
18... Qa5 {[%clk 0:02:21]} 19. Nf3 {[%clk 0:01:04.4]} 19... dxc3 {[%clk
0:02:16]} 20. bxc3 {[%clk 0:01:05.3]} 20... Qxc3 {[%clk 0:02:13.8]} 21. Nxb5
{[%clk 0:01:05]} 21... Qa5 {[%clk 0:02:10]} 22. Nxc7 {[%clk 0:01:02.6]} 22...
Qxc7 {[%clk 0:02:09.7]} 23. fxe5 {[%clk 0:01:01.4]} 23... Nxe5 {[%clk
0:02:06.8]} 24. Nxe5 {[%clk 0:00:56.6]} 24... Qxe5 {[%clk 0:02:06.7]} 25. Bf4
{[%clk 0:00:55.2]} 25... Qd4+ {[%clk 0:02:05.8]} 26. Be3 {[%clk 0:00:55.4]}
26... Qe5 {[%clk 0:02:04.4]} 27. Rc1 {[%clk 0:00:53.7]} 27... Rc8 {[%clk
0:02:02.7]} 28. Qf2 {[%clk 0:00:48.3]} 28... c4 {[%clk 0:01:53.1]} 29. d4 {[%clk
0:00:46.8]} 29... Qb8 {[%clk 0:01:42.6]} 30. d5 {[%clk 0:00:45.8]} 30... Bf7
{[%clk 0:01:41]} 31. Bc5 {[%clk 0:00:45.6]} 31... Ng6 {[%clk 0:01:30.8]} 32.
Rxc4 {[%clk 0:00:41.6]} 32... Qb3 {[%clk 0:01:23.4]} 33. Qc2 {[%clk 0:00:35.9]}
33... Qb5 {[%clk 0:01:15.2]} 34. Rc3 {[%clk 0:00:32.6]} 34... Ne5 {[%clk
0:01:10.9]} 35. Bd4 {[%clk 0:00:31.1]} 35... Ra8 {[%clk 0:01:05]} 36. Rb3 {[%clk
0:00:26.5]} 36... Qa5 {[%clk 0:00:50.9]} 37. Rb1 {[%clk 0:00:23.9]} 37... h6
{[%clk 0:00:45.2]} 38. h3 {[%clk 0:00:23.9]} 38... Qa3 {[%clk 0:00:33.5]} 39.
Qc3 {[%clk 0:00:21.5]} 39... Qa2 {[%clk 0:00:32.2]} 40. Ra1 {[%clk 0:00:20.5]}
40... Qxa1+ {[%clk 0:00:30.4]} 41. Qxa1 {[%clk 0:00:21.4]} 41... Rxa1+ {[%clk
0:00:30.1]} 42. Bxa1 {[%clk 0:00:22.3]} 42... Nc4 {[%clk 0:00:25.7]} 43. Bd4
{[%clk 0:00:21.1]} 43... Kf8 {[%clk 0:00:25.1]} 44. Kf2 {[%clk 0:00:21.5]} 44...
Ke7 {[%clk 0:00:25.4]} 45. Ke2 {[%clk 0:00:22]} 45... Kd6 {[%clk 0:00:25.6]} 46.
Kd3 {[%clk 0:00:21.7]} 46... Na5 {[%clk 0:00:23.7]} 47. Kc3 {[%clk 0:00:19.6]}
47... Nb7 {[%clk 0:00:23]} 48. Kc4 {[%clk 0:00:17.5]} 48... Nd8 {[%clk
0:00:21.2]} 49. Bb6 {[%clk 0:00:15.7]} 49... Nc6 {[%clk 0:00:20.9]} 50. Kd3
{[%clk 0:00:10.4]} 50... Ne5+ {[%clk 0:00:20.7]} 51. Ke2 {[%clk 0:00:10.7]}
51... Nc4 {[%clk 0:00:20.5]} 52. Bd4 {[%clk 0:00:10.9]} 52... Na5 {[%clk
0:00:19.6]} 53. Bf3 {[%clk 0:00:10.9]} 53... Nb3 {[%clk 0:00:19.9]} 54. Be3
{[%clk 0:00:11.1]} 54... Na5 {[%clk 0:00:20.2]} 55. Kd3 {[%clk 0:00:11.5]} 55...
Nb3 {[%clk 0:00:18.2]} 56. Bg4 {[%clk 0:00:11.4]} 56... Na5 {[%clk 0:00:16.3]}
57. Bd4 {[%clk 0:00:11.3]} 57... Nb7 {[%clk 0:00:15.9]} 58. Ke3 {[%clk
0:00:11.5]} 58... Na5 {[%clk 0:00:15.6]} 59. h4 {[%clk 0:00:11.8]} 59... Nc4+
{[%clk 0:00:15.8]} 60. Kf4 {[%clk 0:00:11.9]} 60... Na5 {[%clk 0:00:11.5]} 61.
h5 {[%clk 0:00:11.6]} 61... Nb7 {[%clk 0:00:10.7]} 62. Bb2 {[%clk 0:00:10.8]}
62... Nd8 {[%clk 0:00:10.2]} 63. Ba3+ {[%clk 0:00:11.4]} 63... Kc7 {[%clk
0:00:08.3]} 64. Be2 {[%clk 0:00:11.4]} 64... Nb7 {[%clk 0:00:08]} 65. g4 {[%clk
0:00:10.2]} 65... Nd6 {[%clk 0:00:08]} 66. Bd3 {[%clk 0:00:08.6]} 66... Ne8
{[%clk 0:00:06.8]} 67. Bc4 {[%clk 0:00:07.2]} 67... Nd6 {[%clk 0:00:05.4]} 68.
Be2 {[%clk 0:00:07.2]} 68... Ne8 {[%clk 0:00:04.7]} 69. Ke3 {[%clk 0:00:07.2]}
69... Nd6 {[%clk 0:00:04.6]} 70. Kd4 {[%clk 0:00:07.5]} 70... Ne8 {[%clk
0:00:03.7]} 71. e5 {[%clk 0:00:06.7]} 71... fxe5+ {[%clk 0:00:03.1]} 72. Kxe5
{[%clk 0:00:07.6]} 1-0